[Event "*** Titled Tuesday Blitz"]
[Site "Chess.com"]
[Date "2018.09.04"]
[Round "8"]
[White "Blagorod"]
[Black "akretchetov"]
[Result "0-1"]
[WhiteElo "2009"]
[BlackElo "2237"]
[TimeControl "180+2"]
[EndTime "15:21:58 PDT"]
[Termination "akretchetov won by resignation"]

1. e4 {[%clk 0:03:01.9]} 1... e5 {[%clk 0:03:00.5]} 2. Nf3 {[%clk 0:03:02.2]}
2... Nc6 {[%clk 0:03:01.6]} 3. Bb5 {[%clk 0:03:02.6]} 3... a6 {[%clk 0:03:02.7]}
4. Ba4 {[%clk 0:03:02.6]} 4... d6 {[%clk 0:03:03.6]} 5. O-O {[%clk 0:03:02.7]}
5... Bd7 {[%clk 0:03:04.9]} 6. d4 {[%clk 0:02:51.4]} 6... b5 {[%clk 0:02:59.3]}
7. Bb3 {[%clk 0:02:42.2]} 7... exd4 {[%clk 0:02:59.2]} 8. Ng5 {[%clk 0:02:21.9]}
8... Nh6 {[%clk 0:02:50.9]} 9. Bd5 {[%clk 0:02:13.3]} 9... Be7 {[%clk
0:02:39.9]} 10. Nf3 {[%clk 0:02:13.1]} 10... Bf6 {[%clk 0:02:25.2]} 11. Bxh6
{[%clk 0:01:52.2]} 11... gxh6 {[%clk 0:02:25.8]} 12. Nxd4 {[%clk 0:01:16.5]}
12... Nxd4 {[%clk 0:02:24.7]} 13. Bxa8 {[%clk 0:01:12.9]} 13... Qxa8 {[%clk
0:02:25.4]} 14. c3 {[%clk 0:01:14.1]} 14... Ne6 {[%clk 0:02:23.5]} 15. Nd2
{[%clk 0:01:13.8]} 15... Rg8 {[%clk 0:02:21]} 16. Qf3 {[%clk 0:01:07.2]} 16...
Ke7 {[%clk 0:02:15]} 17. Rfe1 {[%clk 0:00:48.4]} 17... Ng5 {[%clk 0:02:12.6]}
18. Qe3 {[%clk 0:00:35.6]} 18... Nh3+ {[%clk 0:01:52.8]} 19. Kf1 {[%clk
0:00:34.4]} 19... Bg5 {[%clk 0:01:51.1]} 20. Qd3 {[%clk 0:00:24.6]} 20... Nf4
{[%clk 0:01:49.6]} 21. Qd4 {[%clk 0:00:20.9]} 21... c5 {[%clk 0:01:38.8]} 22.
Qe3 {[%clk 0:00:19.8]} 22... Nxg2 {[%clk 0:01:39.3]} 23. f4 {[%clk 0:00:14.1]}
23... Nxe3+ {[%clk 0:01:38.1]} 24. Rxe3 {[%clk 0:00:13.4]} 24... Bxf4 {[%clk
0:01:38]} 25. Re2 {[%clk 0:00:14.5]} 25... Bh3+ {[%clk 0:01:36.2]} 26. Kf2
{[%clk 0:00:13.6]} 26... Rg2+ {[%clk 0:01:34.3]} 0-1

[Event "*** Titled Tuesday Blitz"]
[Site "Chess.com"]
[Date "2018.09.04"]
[Round "8"]
[White "ItalianMachine"]
[Black "Quiet_Desperation"]
[Result "0-1"]
[WhiteElo "2288"]
[BlackElo "1912"]
[TimeControl "180+2"]
[EndTime "15:22:17 PDT"]
[Termination "Quiet_Desperation won by resignation"]

1. c4 {[%clk 0:03:01.9]} 1... Nf6 {[%clk 0:03:00.7]} 2. d4 {[%clk 0:02:57.4]}
2... e6 {[%clk 0:03:01.3]} 3. Nf3 {[%clk 0:02:55.4]} 3... Bb4+ {[%clk
0:03:02.2]} 4. Bd2 {[%clk 0:02:55.8]} 4... Qe7 {[%clk 0:03:03.2]} 5. a3 {[%clk
0:02:54.6]} 5... Bxd2+ {[%clk 0:03:03.8]} 6. Nbxd2 {[%clk 0:02:56.5]} 6... d6
{[%clk 0:03:05.1]} 7. e4 {[%clk 0:02:58]} 7... O-O {[%clk 0:03:06.2]} 8. Bd3
{[%clk 0:02:59.2]} 8... e5 {[%clk 0:03:06.9]} 9. d5 {[%clk 0:03:00]} 9... c6
{[%clk 0:03:07.8]} 10. O-O {[%clk 0:03:00.2]} 10... cxd5 {[%clk 0:03:08.6]} 11.
cxd5 {[%clk 0:03:01.5]} 11... Bg4 {[%clk 0:03:04.5]} 12. Qb3 {[%clk 0:02:54.1]}
12... Nh5 {[%clk 0:02:58.1]} 13. Rfe1 {[%clk 0:02:47]} 13... Nf4 {[%clk
0:02:57.7]} 14. Bf1 {[%clk 0:02:48]} 14... Nd7 {[%clk 0:02:39.7]} 15. Qe3 {[%clk
0:02:43.6]} 15... a5 {[%clk 0:02:29.6]} 16. Rac1 {[%clk 0:02:44.2]} 16... Rfc8
{[%clk 0:02:24.2]} 17. h3 {[%clk 0:02:35.4]} 17... Bxf3 {[%clk 0:02:17]} 18.
Qxf3 {[%clk 0:02:28.6]} 18... Nc5 {[%clk 0:01:59.7]} 19. g3 {[%clk 0:02:25.5]}
19... Ng6 {[%clk 0:02:00]} 20. Nc4 {[%clk 0:02:23.5]} 20... Rf8 {[%clk
0:01:52.4]} 21. b4 {[%clk 0:02:23]} 21... axb4 {[%clk 0:01:50.1]} 22. axb4
{[%clk 0:02:24.9]} 22... Na6 {[%clk 0:01:50.5]} 23. Nb6 {[%clk 0:02:21.8]} 23...
Rab8 {[%clk 0:01:45.7]} 24. Qa3 {[%clk 0:02:22.7]} 24... f5 {[%clk 0:01:42.8]}
25. exf5 {[%clk 0:02:05.5]} 25... Rxf5 {[%clk 0:01:42.6]} 26. Bxa6 {[%clk
0:01:34.6]} 26... bxa6 {[%clk 0:01:41.9]} 27. Qxa6 {[%clk 0:01:35.6]} 27... Rbf8
{[%clk 0:01:38.2]} 28. Re2 {[%clk 0:01:32.9]} 28... e4 {[%clk 0:01:38.2]} 29.
Rc8 {[%clk 0:01:33.4]} 29... Ne5 {[%clk 0:01:37.8]} 30. Rxf8+ {[%clk 0:01:34]}
30... Rxf8 {[%clk 0:01:38.5]} 31. Kg2 {[%clk 0:01:30.1]} 31... Qf6 {[%clk
0:01:33.5]} 32. Rc2 {[%clk 0:00:57]} 32... Qf3+ {[%clk 0:01:29.7]} 33. Kh2
{[%clk 0:00:56]} 33... Qd1 {[%clk 0:01:16.6]} 34. Qe2 {[%clk 0:00:51.7]} 34...
Nf3+ {[%clk 0:01:15.2]} 0-1

[Event "*** Titled Tuesday Blitz"]
[Site "Chess.com"]
[Date "2018.09.04"]
[Round "8"]
[White "northridgehawk"]
[Black "inegrepus"]
[Result "0-1"]
[WhiteElo "2109"]
[BlackElo "2205"]
[TimeControl "180+2"]
[EndTime "15:22:28 PDT"]
[Termination "inegrepus won by resignation"]

1. e4 {[%clk 0:02:54.1]} 1... e6 {[%clk 0:03:00.5]} 2. Nc3 {[%clk 0:02:38.1]}
2... d5 {[%clk 0:03:02.4]} 3. Nf3 {[%clk 0:02:34.7]} 3... dxe4 {[%clk
0:03:03.4]} 4. Nxe4 {[%clk 0:02:27.9]} 4... Nd7 {[%clk 0:03:04.7]} 5. d4 {[%clk
0:02:22.2]} 5... Ngf6 {[%clk 0:03:06.1]} 6. Bd3 {[%clk 0:02:20.4]} 6... c5
{[%clk 0:03:05.8]} 7. dxc5 {[%clk 0:02:20.3]} 7... Nxc5 {[%clk 0:03:06.7]} 8.
Nxc5 {[%clk 0:02:19.5]} 8... Bxc5 {[%clk 0:03:06.7]} 9. O-O {[%clk 0:02:21.4]}
9... O-O {[%clk 0:03:06.5]} 10. Qe2 {[%clk 0:02:19]} 10... Qc7 {[%clk
0:03:06.7]} 11. c3 {[%clk 0:02:08.7]} 11... b6 {[%clk 0:03:06.6]} 12. Bg5 {[%clk
0:02:00.6]} 12... Bb7 {[%clk 0:03:07.4]} 13. Bxf6 {[%clk 0:01:44.4]} 13... gxf6
{[%clk 0:03:09.3]} 14. Nd2 {[%clk 0:01:33.9]} 14... Rad8 {[%clk 0:03:06]} 15.
Bc2 {[%clk 0:01:33.4]} 15... Qf4 {[%clk 0:02:59]} 16. Ne4 {[%clk 0:01:31.7]}
16... Be7 {[%clk 0:02:49]} 17. Rad1 {[%clk 0:01:27.6]} 17... f5 {[%clk
0:02:46.9]} 18. Ng3 {[%clk 0:01:28.4]} 18... Bf6 {[%clk 0:02:37.7]} 19. Nh5
{[%clk 0:01:26.9]} 19... Qg5 {[%clk 0:02:35.2]} 20. f4 {[%clk 0:01:26]} 20...
Qg6 {[%clk 0:02:27.2]} 21. g4 {[%clk 0:01:27]} 21... Be7 {[%clk 0:02:11.8]} 22.
Kf2 {[%clk 0:01:09]} 22... Bh4+ {[%clk 0:02:00.4]} 23. Ke3 {[%clk 0:01:05.8]}
23... Rxd1 {[%clk 0:01:44.6]} 24. Qxd1 {[%clk 0:00:58.7]} 24... Rd8 {[%clk
0:01:40.6]} 25. Qe2 {[%clk 0:00:29.8]} 25... Qxg4 {[%clk 0:01:35.1]} 26. Qxg4+
{[%clk 0:00:25.4]} 26... fxg4 {[%clk 0:01:37]} 27. f5 {[%clk 0:00:26.5]} 27...
Bg5+ {[%clk 0:01:36.6]} 28. Nf4 {[%clk 0:00:23.9]} 28... e5 {[%clk 0:01:37.2]}
0-1

[Event "*** Titled Tuesday Blitz"]
[Site "Chess.com"]
[Date "2018.09.04"]
[Round "8"]
[White "Cryptochess"]
[Black "Polish_fighter3000"]
[Result "0-1"]
[WhiteElo "2538"]
[BlackElo "2905"]
[TimeControl "180+2"]
[EndTime "15:22:45 PDT"]
[Termination "Polish_fighter3000 won by resignation"]

1. e4 {[%clk 0:03:01.9]} 1... e6 {[%clk 0:02:59]} 2. d4 {[%clk 0:03:02.1]} 2...
d5 {[%clk 0:03:00.3]} 3. Nc3 {[%clk 0:03:03.8]} 3... Bb4 {[%clk 0:03:00.6]} 4.
e5 {[%clk 0:03:05]} 4... c5 {[%clk 0:03:02]} 5. a3 {[%clk 0:03:06.5]} 5... Bxc3+
{[%clk 0:03:02.5]} 6. bxc3 {[%clk 0:03:08.4]} 6... Qc7 {[%clk 0:03:03.8]} 7. Qg4
{[%clk 0:03:07.2]} 7... f6 {[%clk 0:02:59.4]} 8. exf6 {[%clk 0:02:29.7]} 8...
Nxf6 {[%clk 0:03:01.3]} 9. Qg3 {[%clk 0:02:30.6]} 9... Qa5 {[%clk 0:02:42.5]}
10. Bd2 {[%clk 0:01:52.2]} 10... O-O {[%clk 0:02:42.3]} 11. c4 {[%clk
0:01:48.4]} 11... Qxd2+ {[%clk 0:02:42.5]} 12. Kxd2 {[%clk 0:01:46.4]} 12...
Ne4+ {[%clk 0:02:44.4]} 13. Ke3 {[%clk 0:01:41.8]} 13... Nxg3 {[%clk 0:02:46.3]}
14. hxg3 {[%clk 0:01:43.5]} 14... cxd4+ {[%clk 0:02:46.9]} 15. Kxd4 {[%clk
0:01:45.4]} 15... Rxf2 {[%clk 0:02:40]} 16. Bd3 {[%clk 0:01:44.6]} 16... h6
{[%clk 0:02:40.3]} 17. cxd5 {[%clk 0:01:38.2]} 17... exd5 {[%clk 0:02:40.7]} 18.
Kxd5 {[%clk 0:01:37.2]} 18... Nc6 {[%clk 0:02:40.9]} 19. Re1 {[%clk 0:01:36.3]}
19... Bg4 {[%clk 0:02:39.4]} 20. Nh3 {[%clk 0:01:18.7]} 20... Rxg2 {[%clk
0:02:31.6]} 21. Nf4 {[%clk 0:01:12.9]} 21... Rxg3 {[%clk 0:02:32.1]} 22. Kc5
{[%clk 0:01:08]} 22... Rc8 {[%clk 0:02:18.9]} 23. Bc4+ {[%clk 0:01:06.2]} 23...
Kh8 {[%clk 0:02:18.6]} 24. Kd6 {[%clk 0:00:53.4]} 24... Rc3 {[%clk 0:02:11.5]}
25. Be6 {[%clk 0:00:21.2]} 25... Bxe6 {[%clk 0:02:01.9]} 26. Nxe6 {[%clk
0:00:23.1]} 26... Rxc2 {[%clk 0:02:01.6]} 27. Kd7 {[%clk 0:00:24.4]} 27... Nb8+
{[%clk 0:02:00.2]} 28. Ke7 {[%clk 0:00:25.2]} 28... Nc6+ {[%clk 0:01:57.2]} 29.
Kd7 {[%clk 0:00:26.4]} 29... Rg8 {[%clk 0:01:54.1]} 30. Ng5 {[%clk 0:00:19.8]}
30... Nb8+ {[%clk 0:01:40.8]} 31. Kd6 {[%clk 0:00:06.9]} 31... Rd8+ {[%clk
0:01:41]} 32. Ke7 {[%clk 0:00:07.2]} 32... Nc6+ {[%clk 0:01:42.4]} 33. Kf7
{[%clk 0:00:07.6]} 33... Rf2+ {[%clk 0:01:42.1]} 34. Kg6 {[%clk 0:00:07.7]}
34... Rf6+ {[%clk 0:01:41.9]} 35. Kh5 {[%clk 0:00:09.1]} 35... Rf5 {[%clk
0:01:38.3]} 0-1

[Event "*** Titled Tuesday Blitz"]
[Site "Chess.com"]
[Date "2018.09.04"]
[Round "8"]
[White "chess_rehab"]
[Black "mjray79"]
[Result "0-1"]
[WhiteElo "2212"]
[BlackElo "2040"]
[TimeControl "180+2"]
[EndTime "15:22:45 PDT"]
[Termination "mjray79 won by resignation"]

1. e4 {[%clk 0:03:01.9]} 1... c5 {[%clk 0:03:00.5]} 2. Nf3 {[%clk 0:03:02.6]}
2... d6 {[%clk 0:03:01.1]} 3. d4 {[%clk 0:03:03.7]} 3... cxd4 {[%clk 0:03:02.1]}
4. Nxd4 {[%clk 0:03:05.6]} 4... Nf6 {[%clk 0:03:02.7]} 5. Nc3 {[%clk 0:03:07]}
5... g6 {[%clk 0:03:03.8]} 6. Be3 {[%clk 0:03:07.1]} 6... Bg7 {[%clk 0:03:04.4]}
7. f3 {[%clk 0:03:08.7]} 7... O-O {[%clk 0:03:04.8]} 8. Qd2 {[%clk 0:03:10.1]}
8... Nc6 {[%clk 0:03:05.5]} 9. O-O-O {[%clk 0:03:11.6]} 9... d5 {[%clk
0:03:06.5]} 10. Nxc6 {[%clk 0:03:12.9]} 10... bxc6 {[%clk 0:03:06.7]} 11. Bh6
{[%clk 0:03:14.4]} 11... Be6 {[%clk 0:02:44.6]} 12. e5 {[%clk 0:03:13.4]} 12...
Nd7 {[%clk 0:02:41.5]} 13. Bxg7 {[%clk 0:03:14.9]} 13... Kxg7 {[%clk 0:02:41.5]}
14. h4 {[%clk 0:03:16.4]} 14... Nxe5 {[%clk 0:02:31.2]} 15. h5 {[%clk
0:03:15.4]} 15... Rh8 {[%clk 0:02:26.2]} 16. Re1 {[%clk 0:02:28.4]} 16... Qd6
{[%clk 0:01:57.7]} 17. Qd4 {[%clk 0:02:19.3]} 17... f6 {[%clk 0:01:57.8]} 18. f4
{[%clk 0:02:19.7]} 18... Nf7 {[%clk 0:01:52.8]} 19. Qe3 {[%clk 0:01:44.7]} 19...
Bg4 {[%clk 0:01:51.2]} 20. hxg6 {[%clk 0:01:31.3]} 20... hxg6 {[%clk 0:01:50]}
21. Rxh8 {[%clk 0:01:31.6]} 21... Rxh8 {[%clk 0:01:49.1]} 22. Qxe7 {[%clk
0:01:31.3]} 22... Qxf4+ {[%clk 0:01:39.7]} 23. Kb1 {[%clk 0:01:31.5]} 23... Rh1
{[%clk 0:01:39.8]} 24. Bd3 {[%clk 0:01:15.4]} 24... Qh2 {[%clk 0:01:14.2]} 25.
a3 {[%clk 0:01:12.7]} 25... Qxg2 {[%clk 0:01:11.1]} 26. Rxh1 {[%clk 0:01:02]}
26... Qxh1+ {[%clk 0:01:11.7]} 27. Ka2 {[%clk 0:01:03.6]} 27... Qg1 {[%clk
0:01:12.4]} 28. b4 {[%clk 0:00:56.9]} 28... Qd4 {[%clk 0:01:10.5]} 29. Kb3
{[%clk 0:00:55.4]} 29... f5 {[%clk 0:00:58.8]} 30. Na4 {[%clk 0:00:53.8]} 30...
f4 {[%clk 0:00:56.2]} 31. Nc5 {[%clk 0:00:53]} 31... f3 {[%clk 0:00:50.6]} 32.
Qg5 {[%clk 0:00:49.3]} 32... Nxg5 {[%clk 0:00:50]} 0-1

[Event "*** Titled Tuesday Blitz"]
[Site "Chess.com"]
[Date "2018.09.04"]
[Round "8"]
[White "chessmaxusa"]
[Black "chesstatour"]
[Result "1-0"]
[WhiteElo "2490"]
[BlackElo "1999"]
[TimeControl "180+2"]
[EndTime "15:22:55 PDT"]
[Termination "chessmaxusa won on time"]

1. d4 {[%clk 0:03:01.9]} 1... d6 {[%clk 0:02:55.1]} 2. Nf3 {[%clk 0:03:02.7]}
2... g6 {[%clk 0:02:55.7]} 3. Bf4 {[%clk 0:03:02.1]} 3... Bg7 {[%clk 0:02:57]}
4. e3 {[%clk 0:03:03.3]} 4... f5 {[%clk 0:02:54.6]} 5. h3 {[%clk 0:03:03.9]}
5... Nf6 {[%clk 0:02:56.2]} 6. Be2 {[%clk 0:03:05.4]} 6... O-O {[%clk
0:02:57.8]} 7. O-O {[%clk 0:03:06.7]} 7... c6 {[%clk 0:02:59.3]} 8. c4 {[%clk
0:03:08]} 8... Bd7 {[%clk 0:03:00.8]} 9. Nc3 {[%clk 0:03:09.5]} 9... a5 {[%clk
0:03:02.3]} 10. Rc1 {[%clk 0:03:10.8]} 10... Na6 {[%clk 0:03:02.2]} 11. a3
{[%clk 0:03:11]} 11... Qe8 {[%clk 0:02:48.8]} 12. Bh2 {[%clk 0:03:11.2]} 12...
Rd8 {[%clk 0:02:47.5]} 13. Re1 {[%clk 0:03:09.9]} 13... Bc8 {[%clk 0:02:43.1]}
14. Qa4 {[%clk 0:03:07.2]} 14... Ne4 {[%clk 0:02:31.7]} 15. Qxa5 {[%clk
0:03:02.5]} 15... c5 {[%clk 0:02:15.4]} 16. Red1 {[%clk 0:02:54.9]} 16... h6
{[%clk 0:01:32.1]} 17. b4 {[%clk 0:02:44.2]} 17... Nxc3 {[%clk 0:01:24.6]} 18.
Rxc3 {[%clk 0:02:44.2]} 18... Bd7 {[%clk 0:01:03.2]} 19. Rcd3 {[%clk 0:02:34]}
19... cxd4 {[%clk 0:01:01.7]} 20. exd4 {[%clk 0:02:34.5]} 20... f4 {[%clk
0:00:59.3]} 21. Bf1 {[%clk 0:02:27.8]} 21... Rf5 {[%clk 0:00:51.9]} 22. Qb6
{[%clk 0:02:14.5]} 22... Bc8 {[%clk 0:00:45.5]} 23. Re1 {[%clk 0:02:08.1]} 23...
Qd7 {[%clk 0:00:34.3]} 24. c5 {[%clk 0:01:48.1]} 24... Nb8 {[%clk 0:00:09.4]}
25. d5 {[%clk 0:01:42.4]} 25... dxc5 {[%clk 0:00:07.9]} 26. bxc5 {[%clk
0:01:40.8]} 26... Rxd5 {[%clk 0:00:06.3]} 27. Rxd5 {[%clk 0:01:39.7]} 27... Qxd5
{[%clk 0:00:07.9]} 28. Rxe7 {[%clk 0:01:38.8]} 28... Nc6 {[%clk 0:00:06.7]} 29.
Re1 {[%clk 0:01:27.8]} 29... g5 {[%clk 0:00:06.1]} 30. Rc1 {[%clk 0:01:18.6]}
30... Nd4 {[%clk 0:00:05.3]} 31. Bc4 {[%clk 0:01:15.5]} 1-0

[Event "*** Titled Tuesday Blitz"]
[Site "Chess.com"]
[Date "2018.09.04"]
[Round "8"]
[White "ozates"]
[Black "joejan"]
[Result "1/2-1/2"]
[WhiteElo "2380"]
[BlackElo "2236"]
[TimeControl "180+2"]
[EndTime "15:23:11 PDT"]
[Termination "Game drawn by repetition"]

1. e4 {[%clk 0:03:01.9]} 1... c5 {[%clk 0:03:00.3]} 2. Nf3 {[%clk 0:03:02.1]}
2... d6 {[%clk 0:03:01.4]} 3. d4 {[%clk 0:03:03.6]} 3... cxd4 {[%clk 0:03:01.7]}
4. Nxd4 {[%clk 0:03:05.5]} 4... Nf6 {[%clk 0:03:02.7]} 5. Nc3 {[%clk 0:03:07.4]}
5... a6 {[%clk 0:03:04.1]} 6. Bg5 {[%clk 0:03:08.1]} 6... e6 {[%clk 0:03:05.1]}
7. Qe2 {[%clk 0:03:08.5]} 7... Be7 {[%clk 0:03:02.1]} 8. O-O-O {[%clk
0:03:09.3]} 8... Nbd7 {[%clk 0:03:01]} 9. f4 {[%clk 0:03:09.6]} 9... Qc7 {[%clk
0:02:59]} 10. g4 {[%clk 0:03:08.4]} 10... h6 {[%clk 0:02:50.2]} 11. Bh4 {[%clk
0:03:07.3]} 11... b5 {[%clk 0:02:42.2]} 12. Bg2 {[%clk 0:03:07.7]} 12... Bb7
{[%clk 0:02:41.6]} 13. e5 {[%clk 0:03:08.7]} 13... dxe5 {[%clk 0:02:28.1]} 14.
fxe5 {[%clk 0:03:08.6]} 14... Nd5 {[%clk 0:02:25.7]} 15. Nxd5 {[%clk 0:03:06.3]}
15... Bxd5 {[%clk 0:02:22.9]} 16. Bxd5 {[%clk 0:03:06.2]} 16... exd5 {[%clk
0:02:15.9]} 17. Bxe7 {[%clk 0:03:07.6]} 17... Kxe7 {[%clk 0:02:15.8]} 18. Nf5+
{[%clk 0:03:03.1]} 18... Kf8 {[%clk 0:02:15.6]} 19. Rxd5 {[%clk 0:03:03.2]}
19... Re8 {[%clk 0:02:11.2]} 20. Rhd1 {[%clk 0:02:59]} 20... Nxe5 {[%clk
0:02:07.7]} 21. Qf2 {[%clk 0:02:48.5]} 21... Nxg4 {[%clk 0:02:01]} 22. Qd4
{[%clk 0:02:41.4]} 22... Nf6 {[%clk 0:01:50.4]} 23. Rd6 {[%clk 0:02:09.7]} 23...
Qc4 {[%clk 0:01:36.5]} 24. Qxc4 {[%clk 0:01:42.1]} 24... bxc4 {[%clk 0:01:36.8]}
25. Nxg7 {[%clk 0:01:43.6]} 25... Re2 {[%clk 0:01:21.8]} 26. Nf5 {[%clk
0:01:38.4]} 26... Re6 {[%clk 0:01:12.1]} 27. Rxe6 {[%clk 0:01:27.8]} 27... fxe6
{[%clk 0:01:12.2]} 28. Rd8+ {[%clk 0:01:29.5]} 28... Ne8 {[%clk 0:01:12.4]} 29.
Nd6 {[%clk 0:01:31]} 29... Ke7 {[%clk 0:01:13.2]} 30. Rxe8+ {[%clk 0:01:32.9]}
30... Rxe8 {[%clk 0:01:13.5]} 31. Nxe8 {[%clk 0:01:34.8]} 31... Kxe8 {[%clk
0:01:14.7]} 32. b4 {[%clk 0:01:33.4]} 32... cxb3 {[%clk 0:01:13.6]} 33. cxb3
{[%clk 0:01:33.7]} 33... Kd7 {[%clk 0:01:14.6]} 34. Kd2 {[%clk 0:01:35.6]} 34...
Kd6 {[%clk 0:01:15.7]} 35. Ke3 {[%clk 0:01:33.5]} 35... Kd5 {[%clk 0:01:10.5]}
36. a3 {[%clk 0:01:33]} 36... e5 {[%clk 0:01:08.5]} 37. Kd3 {[%clk 0:01:33.9]}
37... e4+ {[%clk 0:00:57.9]} 38. Ke3 {[%clk 0:01:34.1]} 38... Ke5 {[%clk
0:00:58.8]} 39. h4 {[%clk 0:01:35.7]} 39... h5 {[%clk 0:00:59.2]} 40. b4 {[%clk
0:01:36.8]} 40... Kd5 {[%clk 0:01:00]} 41. a4 {[%clk 0:01:36]} 41... Kc4 {[%clk
0:00:59.9]} 42. b5 {[%clk 0:01:36.3]} 42... axb5 {[%clk 0:01:00.8]} 43. axb5
{[%clk 0:01:38.2]} 43... Kxb5 {[%clk 0:01:01.2]} 44. Kxe4 {[%clk 0:01:40.1]}
44... Kc6 {[%clk 0:01:02.3]} 45. Kf5 {[%clk 0:01:41.8]} 45... Kd6 {[%clk
0:01:03.7]} 46. Kf6 {[%clk 0:01:39.1]} 46... Kd7 {[%clk 0:01:03.2]} 47. Kf7
{[%clk 0:01:39.8]} 47... Kd8 {[%clk 0:01:04]} 48. Kf8 {[%clk 0:01:40.5]} 48...
Kd7 {[%clk 0:01:05.2]} 49. Kf7 {[%clk 0:01:41.6]} 49... Kd8 {[%clk 0:01:06.3]}
50. Kf8 {[%clk 0:01:41]} 50... Kd7 {[%clk 0:01:07.4]} 51. Kf7 {[%clk 0:01:42.9]}
51... Kd8 {[%clk 0:01:08.3]} 52. Kf8 {[%clk 0:01:44.8]} 52... Kd7 {[%clk
0:01:09.5]} 53. Kf7 {[%clk 0:01:46.2]} 1/2-1/2

[Event "*** Titled Tuesday Blitz"]
[Site "Chess.com"]
[Date "2018.09.04"]
[Round "8"]
[White "platy3"]
[Black "Genghis_K"]
[Result "0-1"]
[WhiteElo "2742"]
[BlackElo "2860"]
[TimeControl "180+2"]
[EndTime "15:23:13 PDT"]
[Termination "Genghis_K won on time"]

1. e4 {[%clk 0:02:12.2]} 1... e5 {[%clk 0:02:51]} 2. Nf3 {[%clk 0:02:10.7]} 2...
Nc6 {[%clk 0:02:52.4]} 3. Bb5 {[%clk 0:02:11.5]} 3... Nf6 {[%clk 0:02:39]} 4. d3
{[%clk 0:02:11.6]} 4... d6 {[%clk 0:02:35]} 5. O-O {[%clk 0:02:10.3]} 5... Be7
{[%clk 0:02:36.5]} 6. c3 {[%clk 0:02:10.4]} 6... O-O {[%clk 0:02:31.8]} 7. Re1
{[%clk 0:02:11.5]} 7... a6 {[%clk 0:02:31.1]} 8. Ba4 {[%clk 0:02:12.4]} 8... b5
{[%clk 0:02:32]} 9. Bc2 {[%clk 0:02:13.6]} 9... d5 {[%clk 0:02:32.8]} 10. Nbd2
{[%clk 0:02:12]} 10... d4 {[%clk 0:02:31.2]} 11. cxd4 {[%clk 0:02:10.1]} 11...
exd4 {[%clk 0:02:32.3]} 12. h3 {[%clk 0:02:11.1]} 12... Nd7 {[%clk 0:02:31.8]}
13. Nb3 {[%clk 0:02:11.8]} 13... Nb6 {[%clk 0:02:29.9]} 14. Bf4 {[%clk
0:02:08.6]} 14... Na4 {[%clk 0:02:29.9]} 15. Rb1 {[%clk 0:02:03]} 15... Be6
{[%clk 0:02:28.6]} 16. a3 {[%clk 0:01:57.4]} 16... Qd7 {[%clk 0:02:19.8]} 17.
Ng5 {[%clk 0:01:52.2]} 17... Nd8 {[%clk 0:02:16.9]} 18. Qd2 {[%clk 0:01:49.4]}
18... c5 {[%clk 0:02:17.2]} 19. Na5 {[%clk 0:01:43.4]} 19... Nb6 {[%clk
0:02:07.3]} 20. Bb3 {[%clk 0:01:40.1]} 20... Bxg5 {[%clk 0:01:51.9]} 21. Bxg5
{[%clk 0:01:39.8]} 21... Bxb3 {[%clk 0:01:52.4]} 22. Bxd8 {[%clk 0:01:30.9]}
22... Rfxd8 {[%clk 0:01:53.1]} 23. Nxb3 {[%clk 0:01:32.2]} 23... c4 {[%clk
0:01:54.7]} 24. Nc5 {[%clk 0:01:19.9]} 24... Qe7 {[%clk 0:01:50.4]} 25. b4
{[%clk 0:01:20.9]} 25... c3 {[%clk 0:01:51.7]} 26. Qf4 {[%clk 0:01:16]} 26... a5
{[%clk 0:01:52]} 27. e5 {[%clk 0:01:12.3]} 27... axb4 {[%clk 0:01:52.2]} 28.
axb4 {[%clk 0:01:13.2]} 28... Na4 {[%clk 0:01:37.3]} 29. Ne4 {[%clk 0:00:52.3]}
29... Nb2 {[%clk 0:01:38.4]} 30. Nc5 {[%clk 0:00:48.6]} 30... Rac8 {[%clk
0:01:34.9]} 31. e6 {[%clk 0:00:49.5]} 31... Rxc5 {[%clk 0:01:31.4]} 32. bxc5
{[%clk 0:00:29]} 32... Nxd3 {[%clk 0:01:28.7]} 33. exf7+ {[%clk 0:00:30.4]}
33... Qxf7 {[%clk 0:01:30.1]} 34. Qh4 {[%clk 0:00:31.6]} 34... Qf6 {[%clk
0:01:30.7]} 35. Qh5 {[%clk 0:00:11.2]} 35... Qxf2+ {[%clk 0:01:22.1]} 36. Kh1
{[%clk 0:00:10.9]} 36... Nxe1 {[%clk 0:01:23.4]} 0-1

[Event "*** Titled Tuesday Blitz"]
[Site "Chess.com"]
[Date "2018.09.04"]
[Round "8"]
[White "area_5"]
[Black "Rashad_Zeynalli"]
[Result "0-1"]
[WhiteElo "2575"]
[BlackElo "2369"]
[TimeControl "180+2"]
[EndTime "15:23:27 PDT"]
[Termination "Rashad_Zeynalli won by resignation"]

1. b3 {[%clk 0:02:49]} 1... f5 {[%clk 0:02:51.8]} 2. Bb2 {[%clk 0:02:49.9]} 2...
Nf6 {[%clk 0:02:52]} 3. d3 {[%clk 0:02:51]} 3... g6 {[%clk 0:02:52.6]} 4. Nd2
{[%clk 0:02:52.4]} 4... Bg7 {[%clk 0:02:53.3]} 5. g3 {[%clk 0:02:54.1]} 5... O-O
{[%clk 0:02:53.8]} 6. Bg2 {[%clk 0:02:55.6]} 6... d6 {[%clk 0:02:54.6]} 7. c4
{[%clk 0:02:54.5]} 7... e5 {[%clk 0:02:54.9]} 8. Qc2 {[%clk 0:02:55.7]} 8... Nc6
{[%clk 0:02:39.5]} 9. a3 {[%clk 0:02:55.6]} 9... a5 {[%clk 0:02:39.5]} 10. Ngf3
{[%clk 0:02:54.9]} 10... h6 {[%clk 0:02:39.3]} 11. O-O {[%clk 0:02:50.3]} 11...
g5 {[%clk 0:02:40.2]} 12. b4 {[%clk 0:02:41.6]} 12... axb4 {[%clk 0:02:36.4]}
13. axb4 {[%clk 0:02:40.1]} 13... Rxa1 {[%clk 0:02:36.6]} 14. Rxa1 {[%clk
0:02:41.7]} 14... Nxb4 {[%clk 0:02:38]} 15. Qb3 {[%clk 0:02:43.2]} 15... Nc6
{[%clk 0:02:34.6]} 16. c5+ {[%clk 0:02:43.5]} 16... Kh8 {[%clk 0:02:28.8]} 17.
cxd6 {[%clk 0:02:44.6]} 17... cxd6 {[%clk 0:02:26.1]} 18. Nc4 {[%clk 0:02:45.7]}
18... Qc7 {[%clk 0:02:07.8]} 19. Nb6 {[%clk 0:02:45.4]} 19... Nd7 {[%clk
0:01:30.7]} 20. Nd5 {[%clk 0:02:38.7]} 20... Qb8 {[%clk 0:01:20.3]} 21. Ba3
{[%clk 0:02:37.4]} 21... e4 {[%clk 0:01:14.6]} 22. dxe4 {[%clk 0:02:17.4]} 22...
Bxa1 {[%clk 0:01:08.9]} 23. exf5 {[%clk 0:02:12]} 23... Bg7 {[%clk 0:01:08.6]}
24. e4 {[%clk 0:02:08.2]} 24... Nde5 {[%clk 0:01:02.2]} 25. Nxe5 {[%clk
0:01:55]} 25... Nxe5 {[%clk 0:01:04.1]} 26. h4 {[%clk 0:01:47.9]} 26... gxh4
{[%clk 0:01:01.9]} 27. gxh4 {[%clk 0:01:38.1]} 27... Bd7 {[%clk 0:01:00.6]} 28.
Bc1 {[%clk 0:01:28.6]} 28... Bc6 {[%clk 0:00:55.2]} 29. Nf4 {[%clk 0:01:23.1]}
29... Qa7 {[%clk 0:00:44.5]} 30. Ne6 {[%clk 0:01:16.4]} 30... Qa1 {[%clk
0:00:39.2]} 31. Qc2 {[%clk 0:01:17.4]} 31... Rc8 {[%clk 0:00:33.9]} 32. Nxg7
{[%clk 0:01:11.2]} 32... Bd7 {[%clk 0:00:24.8]} 33. Qb3 {[%clk 0:01:10]} 33...
Qxc1+ {[%clk 0:00:22]} 34. Kh2 {[%clk 0:01:11.2]} 34... Qf4+ {[%clk 0:00:20.7]}
35. Kh3 {[%clk 0:01:12.5]} 35... Qg4+ {[%clk 0:00:17.1]} 36. Kh2 {[%clk
0:01:13.5]} 36... Qxh4+ {[%clk 0:00:18.2]} 37. Bh3 {[%clk 0:01:12.8]} 37...
Qxf2+ {[%clk 0:00:18.7]} 38. Bg2 {[%clk 0:01:13]} 38... Qh4+ {[%clk 0:00:18.2]}
39. Bh3 {[%clk 0:01:14.2]} 39... Ng4+ {[%clk 0:00:19.2]} 40. Kg2 {[%clk
0:01:07.6]} 40... Qf2+ {[%clk 0:00:17.5]} 0-1